[Event "*** SCC Grand Prix: Titled Tuesday Blitz"]
[Site "Chess.com"]
[Date "2020.06.02"]
[Round "7"]
[White "AlexSuv"]
[Black "arminmusovic"]
[Result "1-0"]
[WhiteElo "2718"]
[BlackElo "2531"]
[TimeControl "180+1"]
[EndTime "11:20:45 PDT"]
[Termination "AlexSuv won by resignation"]

1. d4 {[%clk 0:03:00.9]} 1... d5 {[%clk 0:02:56.1]} 2. Bf4 {[%clk 0:02:59.2]}
2... c5 {[%clk 0:02:56.3]} 3. e3 {[%clk 0:02:58.7]} 3... Nc6 {[%clk 0:02:54.9]}
4. c3 {[%clk 0:02:58.4]} 4... a6 {[%clk 0:02:52.8]} 5. Nd2 {[%clk 0:02:57]} 5...
Nf6 {[%clk 0:02:52.5]} 6. Ngf3 {[%clk 0:02:56.6]} 6... Bg4 {[%clk 0:02:53]} 7.
h3 {[%clk 0:02:56.4]} 7... Bh5 {[%clk 0:02:52.9]} 8. Be2 {[%clk 0:02:54.7]} 8...
e6 {[%clk 0:02:53.1]} 9. O-O {[%clk 0:02:54.9]} 9... Bd6 {[%clk 0:02:53.3]} 10.
Ne5 {[%clk 0:02:55.3]} 10... Bxe2 {[%clk 0:02:52.5]} 11. Qxe2 {[%clk 0:02:56]}
11... O-O {[%clk 0:02:52.9]} 12. Bg3 {[%clk 0:02:45.1]} 12... Rc8 {[%clk
0:02:51.2]} 13. f4 {[%clk 0:02:43.6]} 13... cxd4 {[%clk 0:02:45.9]} 14. exd4
{[%clk 0:02:43.1]} 14... Qb6 {[%clk 0:02:43.3]} 15. Rab1 {[%clk 0:02:34.9]}
15... Rfe8 {[%clk 0:02:34.6]} 16. Bh4 {[%clk 0:02:33.7]} 16... Be7 {[%clk
0:02:33.9]} 17. Bxf6 {[%clk 0:02:30.3]} 17... Bxf6 {[%clk 0:02:33.2]} 18. Nd7
{[%clk 0:02:30.5]} 18... Qd8 {[%clk 0:02:32.4]} 19. Ne5 {[%clk 0:02:18.1]} 19...
g6 {[%clk 0:02:27]} 20. Ndf3 {[%clk 0:02:16.4]} 20... Bg7 {[%clk 0:02:23.6]} 21.
Rbe1 {[%clk 0:02:14]} 21... f6 {[%clk 0:02:17.1]} 22. Nd3 {[%clk 0:02:10.3]}
22... Bf8 {[%clk 0:02:13.9]} 23. Qf2 {[%clk 0:02:06.3]} 23... Qa5 {[%clk
0:02:11.4]} 24. a3 {[%clk 0:02:04.9]} 24... Qb5 {[%clk 0:02:09.9]} 25. Rd1
{[%clk 0:01:41.2]} 25... Na5 {[%clk 0:02:09.4]} 26. Rfe1 {[%clk 0:01:38.9]}
26... Nc4 {[%clk 0:02:07.9]} 27. g4 {[%clk 0:01:28.9]} 27... Qd7 {[%clk
0:02:02.8]} 28. g5 {[%clk 0:01:27.9]} 28... e5 {[%clk 0:01:54.6]} 29. fxe5
{[%clk 0:01:23.8]} 29... fxg5 {[%clk 0:01:34.9]} 30. Nxg5 {[%clk 0:01:21.9]}
30... Bh6 {[%clk 0:01:35.2]} 31. h4 {[%clk 0:01:15.2]} 31... Qg4+ {[%clk
0:01:29.7]} 32. Qg2 {[%clk 0:01:13]} 32... Qxh4 {[%clk 0:01:02.7]} 33. Qxd5+
{[%clk 0:01:12.2]} 33... Kh8 {[%clk 0:01:03.3]} 34. Nf7+ {[%clk 0:01:09.3]}
34... Kg7 {[%clk 0:01:02.6]} 35. Nxh6 {[%clk 0:01:09.3]} 35... Qxh6 {[%clk
0:00:48.6]} 36. e6 {[%clk 0:01:04.7]} 36... Rc6 {[%clk 0:00:26.1]} 37. Qd7+
{[%clk 0:01:00.6]} 37... Kf6 {[%clk 0:00:20.4]} 38. Rf1+ {[%clk 0:00:45.7]}
38... Kg5 {[%clk 0:00:20.8]} 39. Qxe8 {[%clk 0:00:45.3]} 39... Qh3 {[%clk
0:00:21]} 40. Qe7+ {[%clk 0:00:39.8]} 40... Kh6 {[%clk 0:00:20.1]} 41. Qf8+
{[%clk 0:00:40]} 41... Kg5 {[%clk 0:00:19.4]} 42. Qf6+ {[%clk 0:00:37.9]} 42...
Kh6 {[%clk 0:00:18.8]} 43. Qf8+ {[%clk 0:00:36]} 43... Kg5 {[%clk 0:00:19.2]}
44. Qf3 {[%clk 0:00:33.1]} 44... Qxe6 {[%clk 0:00:16]} 45. Rde1 {[%clk
0:00:29.9]} 45... Qd6 {[%clk 0:00:13.6]} 46. Ne5 {[%clk 0:00:28.6]} 46... Nxe5
{[%clk 0:00:12.1]} 47. Rxe5+ {[%clk 0:00:28.3]} 47... Kh6 {[%clk 0:00:11.5]} 48.
Qf4+ {[%clk 0:00:27.1]} 48... Kg7 {[%clk 0:00:10.5]} 49. Qf7+ {[%clk 0:00:25.5]}
49... Kh6 {[%clk 0:00:10.5]} 50. Rf2 {[%clk 0:00:25]} 1-0

[Event "*** SCC Grand Prix: Titled Tuesday Blitz"]
[Site "Chess.com"]
[Date "2020.06.02"]
[Round "7"]
[White "saikrishnaReturns"]
[Black "MrChampion_Coach"]
[Result "1-0"]
[WhiteElo "2644"]
[BlackElo "2454"]
[TimeControl "180+1"]
[EndTime "11:20:45 PDT"]
[Termination "saikrishnaReturns won on time"]

1. e4 {[%clk 0:03:00.9]} 1... c5 {[%clk 0:02:58.6]} 2. Nf3 {[%clk 0:03:00]} 2...
e6 {[%clk 0:02:58.7]} 3. d4 {[%clk 0:02:59.9]} 3... cxd4 {[%clk 0:02:59.6]} 4.
Nxd4 {[%clk 0:03:00.5]} 4... Nc6 {[%clk 0:03:00.1]} 5. Nc3 {[%clk 0:03:00.1]}
5... Qc7 {[%clk 0:03:00.3]} 6. Be3 {[%clk 0:03:00.2]} 6... a6 {[%clk 0:03:00.5]}
7. Bd3 {[%clk 0:03:00.4]} 7... Nf6 {[%clk 0:02:58]} 8. O-O {[%clk 0:03:00.4]}
8... Nxd4 {[%clk 0:02:55.3]} 9. Bxd4 {[%clk 0:03:00.2]} 9... Bc5 {[%clk
0:02:56.2]} 10. Bxf6 {[%clk 0:02:53]} 10... gxf6 {[%clk 0:02:54.6]} 11. Qg4
{[%clk 0:02:50.2]} 11... Kf8 {[%clk 0:02:47.5]} 12. Rae1 {[%clk 0:02:42.1]}
12... h5 {[%clk 0:02:43.5]} 13. Qh4 {[%clk 0:02:41.8]} 13... b5 {[%clk 0:02:43]}
14. Qxf6 {[%clk 0:02:37.5]} 14... Rg8 {[%clk 0:02:28.3]} 15. Qh6+ {[%clk
0:02:36.3]} 15... Rg7 {[%clk 0:02:23.7]} 16. Qxh5 {[%clk 0:02:24.9]} 16... Bb7
{[%clk 0:02:19.3]} 17. Kh1 {[%clk 0:02:21.6]} 17... Kg8 {[%clk 0:02:13.1]} 18.
f4 {[%clk 0:02:19.3]} 18... Rh7 {[%clk 0:02:08.9]} 19. Qf3 {[%clk 0:02:13]}
19... Kh8 {[%clk 0:02:07.6]} 20. a4 {[%clk 0:01:58.6]} 20... b4 {[%clk
0:02:05.4]} 21. Nd1 {[%clk 0:01:58.4]} 21... Rg8 {[%clk 0:02:02.8]} 22. Ne3
{[%clk 0:01:58.4]} 22... Bd4 {[%clk 0:01:45]} 23. b3 {[%clk 0:01:53]} 23... f5
{[%clk 0:01:41.7]} 24. Nc4 {[%clk 0:01:39.1]} 24... d5 {[%clk 0:01:36.3]} 25.
exf5 {[%clk 0:01:25.6]} 25... dxc4 {[%clk 0:01:14.7]} 26. Be4 {[%clk 0:01:25.4]}
26... Bxe4 {[%clk 0:01:11.4]} 27. Rxe4 {[%clk 0:01:26.3]} 27... e5 {[%clk
0:00:54.9]} 28. bxc4 {[%clk 0:01:16.6]} 28... Bc3 {[%clk 0:00:31.8]} 29. f6
{[%clk 0:01:12.3]} 29... exf4 {[%clk 0:00:28.6]} 30. Qxf4 {[%clk 0:00:52.4]}
30... Qxf4 {[%clk 0:00:25.3]} 31. Rfxf4 {[%clk 0:00:53.3]} 31... Rd8 {[%clk
0:00:21.8]} 32. h4 {[%clk 0:00:51.8]} 32... Rf7 {[%clk 0:00:19.4]} 33. Re6
{[%clk 0:00:44.1]} 33... Rd4 {[%clk 0:00:18.1]} 34. Rxd4 {[%clk 0:00:40.2]}
34... Bxd4 {[%clk 0:00:19]} 35. Re8+ {[%clk 0:00:23.4]} 35... Kh7 {[%clk
0:00:17.4]} 36. Re7 {[%clk 0:00:24]} 36... Kg6 {[%clk 0:00:16.5]} 37. Rxf7
{[%clk 0:00:23.4]} 37... Kxf7 {[%clk 0:00:17.4]} 38. g4 {[%clk 0:00:23.7]} 38...
Bf2 {[%clk 0:00:12.9]} 39. h5 {[%clk 0:00:21.3]} 39... Kxf6 {[%clk 0:00:12.7]}
40. Kg2 {[%clk 0:00:21.7]} 40... Bb6 {[%clk 0:00:05.8]} 41. Kf3 {[%clk
0:00:21.9]} 41... Kg5 {[%clk 0:00:06.2]} 42. Ke4 {[%clk 0:00:21]} 42... Kxg4
{[%clk 0:00:05.2]} 43. h6 {[%clk 0:00:21.1]} 43... Bd8 {[%clk 0:00:04.3]} 44. h7
{[%clk 0:00:19.1]} 44... Bf6 {[%clk 0:00:04.1]} 45. c5 {[%clk 0:00:19.5]} 45...
b3 {[%clk 0:00:01.9]} 46. cxb3 {[%clk 0:00:18.9]} 46... Kg5 {[%clk 0:00:01.3]}
47. c6 {[%clk 0:00:19.1]} 47... Be5 {[%clk 0:00:01.1]} 48. Kxe5 {[%clk
0:00:19.1]} 1-0

[Event "*** SCC Grand Prix: Titled Tuesday Blitz"]
[Site "Chess.com"]
[Date "2020.06.02"]
[Round "7"]
[White "ClassyEl"]
[Black "carlesdc96"]
[Result "0-1"]
[WhiteElo "2576"]
[BlackElo "2756"]
[TimeControl "180+1"]
[EndTime "11:20:46 PDT"]
[Termination "carlesdc96 won on time"]

1. d4 {[%clk 0:03:00.9]} 1... e6 {[%clk 0:02:58.9]} 2. Nf3 {[%clk 0:03:00.5]}
2... Nf6 {[%clk 0:02:58.6]} 3. e3 {[%clk 0:03:00.7]} 3... b6 {[%clk 0:02:56.1]}
4. Bd3 {[%clk 0:03:00.5]} 4... Bb7 {[%clk 0:02:56.7]} 5. O-O {[%clk 0:03:00.5]}
5... c5 {[%clk 0:02:56.1]} 6. c4 {[%clk 0:03:00.5]} 6... Be7 {[%clk 0:02:54.3]}
7. Nc3 {[%clk 0:03:00.6]} 7... cxd4 {[%clk 0:02:44.9]} 8. exd4 {[%clk
0:03:00.7]} 8... O-O {[%clk 0:02:44.7]} 9. d5 {[%clk 0:03:01]} 9... exd5 {[%clk
0:02:41.3]} 10. cxd5 {[%clk 0:03:00.9]} 10... Bb4 {[%clk 0:02:34.1]} 11. Bg5
{[%clk 0:02:50.3]} 11... h6 {[%clk 0:02:31.7]} 12. Bh4 {[%clk 0:02:47]} 12...
Bxc3 {[%clk 0:02:15.3]} 13. bxc3 {[%clk 0:02:46.8]} 13... Na6 {[%clk 0:02:12.2]}
14. Bc2 {[%clk 0:02:35]} 14... Nc5 {[%clk 0:02:11.6]} 15. Qd4 {[%clk 0:02:31.9]}
15... Re8 {[%clk 0:02:03.5]} 16. Rfe1 {[%clk 0:02:31.6]} 16... Rxe1+ {[%clk
0:01:59.9]} 17. Rxe1 {[%clk 0:02:30.8]} 17... Rc8 {[%clk 0:01:55.5]} 18. h3
{[%clk 0:02:22.5]} 18... d6 {[%clk 0:01:50.1]} 19. Qf4 {[%clk 0:02:13.5]} 19...
Bxd5 {[%clk 0:01:19.5]} 20. Rd1 {[%clk 0:02:04.3]} 20... Be6 {[%clk 0:01:13.3]}
21. Rxd6 {[%clk 0:02:02.1]} 21... Qe7 {[%clk 0:01:13.1]} 22. Rd1 {[%clk
0:01:47.5]} 22... Ncd7 {[%clk 0:01:05.7]} 23. Re1 {[%clk 0:01:37.6]} 23... Qc5
{[%clk 0:01:00.5]} 24. Nd4 {[%clk 0:01:21.6]} 24... g5 {[%clk 0:00:43.8]} 25.
Nxe6 {[%clk 0:01:11.7]} 25... Qxc3 {[%clk 0:00:28.7]} 26. Bxg5 {[%clk
0:00:19.5]} 26... Qxe1+ {[%clk 0:00:28.6]} 27. Kh2 {[%clk 0:00:19.7]} 27... Qxe6
{[%clk 0:00:24.8]} 28. Bf5 {[%clk 0:00:19.1]} 28... Rc4 {[%clk 0:00:18.3]} 29.
Bxe6 {[%clk 0:00:11.4]} 29... Rxf4 {[%clk 0:00:17.8]} 30. Bxf7+ {[%clk 0:00:10]}
30... Kxf7 {[%clk 0:00:17.5]} 31. Bxf4 {[%clk 0:00:10.9]} 31... h5 {[%clk
0:00:17.9]} 32. f3 {[%clk 0:00:10.8]} 32... Kg6 {[%clk 0:00:17.9]} 33. g4 {[%clk
0:00:11.1]} 33... Nd5 {[%clk 0:00:18.2]} 34. Bd2 {[%clk 0:00:11]} 34... Nc5
{[%clk 0:00:17.9]} 35. Kg3 {[%clk 0:00:10.7]} 35... Nd3 {[%clk 0:00:16.8]} 36.
f4 {[%clk 0:00:10.1]} 36... hxg4 {[%clk 0:00:16.6]} 37. hxg4 {[%clk 0:00:10.1]}
37... b5 {[%clk 0:00:17.5]} 38. f5+ {[%clk 0:00:08.9]} 38... Kf7 {[%clk
0:00:17.5]} 39. g5 {[%clk 0:00:07.4]} 39... b4 {[%clk 0:00:17.1]} 40. Kf3 {[%clk
0:00:07.6]} 40... Nc5 {[%clk 0:00:13.4]} 41. Kg4 {[%clk 0:00:04]} 41... a5
{[%clk 0:00:12.9]} 42. g6+ {[%clk 0:00:03.2]} 42... Kg7 {[%clk 0:00:12.2]} 43.
Kg5 {[%clk 0:00:02.3]} 43... Ne4+ {[%clk 0:00:12]} 44. Kh5 {[%clk 0:00:02.6]}
44... Nxd2 {[%clk 0:00:12.9]} 0-1

[Event "*** SCC Grand Prix: Titled Tuesday Blitz"]
[Site "Chess.com"]
[Date "2020.06.02"]
[Round "7"]
[White "Mikhal867"]
[Black "Jospem"]
[Result "0-1"]
[WhiteElo "2309"]
[BlackElo "2862"]
[TimeControl "180+1"]
[EndTime "11:20:46 PDT"]
[Termination "Jospem won on time"]

1. c4 {[%clk 0:02:49.7]} 1... c5 {[%clk 0:02:59.5]} 2. f3 {[%clk 0:02:46.9]}
2... d5 {[%clk 0:02:57.9]} 3. cxd5 {[%clk 0:02:46.2]} 3... Qxd5 {[%clk
0:02:58.8]} 4. e4 {[%clk 0:02:45.9]} 4... Qd8 {[%clk 0:02:59]} 5. Bb5+ {[%clk
0:02:43.4]} 5... Bd7 {[%clk 0:02:58.9]} 6. Bc4 {[%clk 0:02:24.8]} 6... Nc6
{[%clk 0:02:57.2]} 7. Ne2 {[%clk 0:02:23.1]} 7... e5 {[%clk 0:02:53.9]} 8. Nbc3
{[%clk 0:02:15.6]} 8... Nf6 {[%clk 0:02:51.9]} 9. d3 {[%clk 0:02:14.4]} 9... Be7
{[%clk 0:02:45.6]} 10. O-O {[%clk 0:02:13]} 10... O-O {[%clk 0:02:46.1]} 11. f4
{[%clk 0:02:12.8]} 11... a6 {[%clk 0:02:42.6]} 12. a4 {[%clk 0:02:10]} 12... Bd6
{[%clk 0:02:37.9]} 13. f5 {[%clk 0:02:05.5]} 13... h6 {[%clk 0:02:34.9]} 14. h3
{[%clk 0:02:02.2]} 14... Nb4 {[%clk 0:02:26.7]} 15. a5 {[%clk 0:01:52.5]} 15...
Nc6 {[%clk 0:02:22.7]} 16. Nd5 {[%clk 0:01:37.3]} 16... Nb4 {[%clk 0:02:02.5]}
17. Nxb4 {[%clk 0:01:27.5]} 17... cxb4 {[%clk 0:02:01.7]} 18. Ng3 {[%clk
0:01:26.8]} 18... Bc5+ {[%clk 0:02:01.2]} 19. Kh2 {[%clk 0:01:25.9]} 19... Bb5
{[%clk 0:02:01.8]} 20. Nh5 {[%clk 0:01:15.8]} 20... Bxc4 {[%clk 0:01:53.2]} 21.
dxc4 {[%clk 0:01:08.4]} 21... Qxd1 {[%clk 0:01:32.7]} 22. Nxf6+ {[%clk
0:01:06.3]} 22... gxf6 {[%clk 0:01:33.6]} 23. Rxd1 {[%clk 0:01:05.5]} 23... h5
{[%clk 0:01:30.1]} 24. Bh6 {[%clk 0:00:51.6]} 24... Rfd8 {[%clk 0:01:17.1]} 25.
Rd5 {[%clk 0:00:50.2]} 25... Bd4 {[%clk 0:01:16]} 26. Ra4 {[%clk 0:00:44.1]}
26... Rxd5 {[%clk 0:00:39.4]} 27. cxd5 {[%clk 0:00:35.6]} 27... Bxb2 {[%clk
0:00:38.8]} 28. Rxb4 {[%clk 0:00:35]} 28... Bc3 {[%clk 0:00:39.5]} 29. Rxb7
{[%clk 0:00:29.9]} 29... Bxa5 {[%clk 0:00:40]} 30. d6 {[%clk 0:00:20.4]} 30...
Bd8 {[%clk 0:00:40.5]} 31. d7 {[%clk 0:00:16.7]} 31... a5 {[%clk 0:00:39.2]} 32.
Bc1 {[%clk 0:00:15.4]} 32... a4 {[%clk 0:00:27.6]} 33. Ba3 {[%clk 0:00:15.1]}
33... Kg7 {[%clk 0:00:28.2]} 34. Kg3 {[%clk 0:00:14.3]} 34... Ba5 {[%clk
0:00:19.1]} 35. Kh4 {[%clk 0:00:11.3]} 35... Kh6 {[%clk 0:00:13.2]} 36. Bc1+
{[%clk 0:00:10.2]} 36... Kg7 {[%clk 0:00:11]} 37. Kxh5 {[%clk 0:00:10.3]} 37...
Rg8 {[%clk 0:00:06.6]} 38. Ra7 {[%clk 0:00:08.3]} 38... Bb6 {[%clk 0:00:04.5]}
39. Rxa4 {[%clk 0:00:07]} 39... Rd8 {[%clk 0:00:05]} 40. Rb4 {[%clk 0:00:05.7]}
40... Bc7 {[%clk 0:00:05.5]} 41. Rb3 {[%clk 0:00:02.7]} 41... Rxd7 {[%clk
0:00:05.4]} 42. Rg3+ {[%clk 0:00:01.6]} 42... Kf8 {[%clk 0:00:05.9]} 0-1

[Event "*** SCC Grand Prix: Titled Tuesday Blitz"]
[Site "Chess.com"]
[Date "2020.06.02"]
[Round "7"]
[White "dopolian"]
[Black "yamalchess"]
[Result "1/2-1/2"]
[WhiteElo "2335"]
[BlackElo "2460"]
[TimeControl "180+1"]
[EndTime "11:20:46 PDT"]
[Termination "Game drawn by repetition"]

1. e4 {[%clk 0:03:00.9]} 1... e5 {[%clk 0:02:59.1]} 2. Nf3 {[%clk 0:03:00.6]}
2... Nc6 {[%clk 0:02:59.2]} 3. Bb5 {[%clk 0:03:01]} 3... a6 {[%clk 0:02:56.6]}
4. Ba4 {[%clk 0:02:59.1]} 4... Nf6 {[%clk 0:02:57.1]} 5. O-O {[%clk 0:02:58]}
5... b5 {[%clk 0:02:57.6]} 6. Bb3 {[%clk 0:02:57.7]} 6... Bb7 {[%clk 0:02:58.2]}
7. Re1 {[%clk 0:02:53.8]} 7... Bc5 {[%clk 0:02:57.7]} 8. c3 {[%clk 0:02:52.1]}
8... Ng4 {[%clk 0:02:53.7]} 9. d4 {[%clk 0:02:51.6]} 9... exd4 {[%clk
0:02:53.4]} 10. cxd4 {[%clk 0:02:52.5]} 10... Nxd4 {[%clk 0:02:53.3]} 11. Nxd4
{[%clk 0:02:38.9]} 11... Qh4 {[%clk 0:02:50]} 12. Be3 {[%clk 0:01:44.1]} 12...
Qxh2+ {[%clk 0:02:48.9]} 13. Kf1 {[%clk 0:01:44]} 13... Qh1+ {[%clk 0:02:49.5]}
14. Ke2 {[%clk 0:01:44.4]} 14... Qxg2 {[%clk 0:02:50.1]} 15. Nc3 {[%clk
0:01:42.3]} 15... Bxe4 {[%clk 0:02:15.9]} 16. Rg1 {[%clk 0:01:40.4]} 16... Nxe3
{[%clk 0:02:13.5]} 17. Rxg2 {[%clk 0:01:34.1]} 17... Nxd1 {[%clk 0:02:13]} 18.
Nxe4 {[%clk 0:01:33.9]} 18... Bxd4 {[%clk 0:02:08]} 19. Rxd1 {[%clk 0:01:30.7]}
19... Bxb2 {[%clk 0:02:06.4]} 20. Rb1 {[%clk 0:00:55.2]} 20... Be5 {[%clk
0:01:52.7]} 21. f4 {[%clk 0:00:49.6]} 21... Bxf4 {[%clk 0:01:45.2]} 22. Rxg7
{[%clk 0:00:48.7]} 22... O-O-O {[%clk 0:01:44.8]} 23. Rxf7 {[%clk 0:00:42.8]}
23... Rhf8 {[%clk 0:01:39]} 24. Rxh7 {[%clk 0:00:38.8]} 24... Rde8 {[%clk
0:01:29]} 25. Kd3 {[%clk 0:00:38.1]} 25... d6 {[%clk 0:01:26.5]} 26. Rf1 {[%clk
0:00:30.8]} 26... Kb8 {[%clk 0:01:21.1]} 27. Bf7 {[%clk 0:00:27.5]} 27... Be5
{[%clk 0:01:15.4]} 28. Rf2 {[%clk 0:00:17.3]} 28... Re7 {[%clk 0:01:09.3]} 29.
Ng5 {[%clk 0:00:17.4]} 29... Rh8 {[%clk 0:00:57.1]} 30. Rxh8+ {[%clk 0:00:17.3]}
30... Bxh8 {[%clk 0:00:56.5]} 31. Be6 {[%clk 0:00:16.2]} 31... Be5 {[%clk
0:00:55.3]} 32. Bd5 {[%clk 0:00:12.9]} 32... Ka7 {[%clk 0:00:54.3]} 33. Rf8
{[%clk 0:00:06.8]} 33... Kb6 {[%clk 0:00:53.4]} 34. Ne4 {[%clk 0:00:04]} 34...
c6 {[%clk 0:00:52]} 35. Bg8 {[%clk 0:00:01.9]} 35... d5 {[%clk 0:00:50.4]} 36.
Ng5 {[%clk 0:00:02.2]} 36... Bd6 {[%clk 0:00:45.3]} 37. Ne6 {[%clk 0:00:02.5]}
37... Ba3 {[%clk 0:00:44]} 38. Rd8 {[%clk 0:00:01.9]} 38... a5 {[%clk
0:00:40.7]} 39. Rb8+ {[%clk 0:00:02.2]} 39... Ka7 {[%clk 0:00:39.8]} 40. Rd8
{[%clk 0:00:02.3]} 40... a4 {[%clk 0:00:39.1]} 41. Nd4 {[%clk 0:00:02.3]} 41...
Kb6 {[%clk 0:00:38.3]} 42. Rb8+ {[%clk 0:00:02.6]} 42... Rb7 {[%clk 0:00:37.3]}
43. Rxb7+ {[%clk 0:00:02.4]} 43... Kxb7 {[%clk 0:00:37.5]} 44. Be6 {[%clk
0:00:02.8]} 44... Kb6 {[%clk 0:00:37.4]} 45. Bd7 {[%clk 0:00:03.1]} 45... c5
{[%clk 0:00:33.1]} 46. Nxb5 {[%clk 0:00:03.3]} 46... Bb2 {[%clk 0:00:33.1]} 47.
Nd6 {[%clk 0:00:03.1]} 47... c4+ {[%clk 0:00:32.3]} 48. Nxc4+ {[%clk 0:00:01.8]}
48... dxc4+ {[%clk 0:00:31.8]} 49. Kxc4 {[%clk 0:00:02.7]} 49... a3 {[%clk
0:00:32]} 50. Kb3 {[%clk 0:00:03.2]} 50... Kc5 {[%clk 0:00:32.2]} 51. Bf5 {[%clk
0:00:03.3]} 51... Kd4 {[%clk 0:00:32.4]} 52. Bb1 {[%clk 0:00:04.2]} 52... Kc5
{[%clk 0:00:32.7]} 53. Bh7 {[%clk 0:00:05.1]} 53... Kb5 {[%clk 0:00:33]} 54. Bb1
{[%clk 0:00:06]} 54... Kc5 {[%clk 0:00:33.3]} 55. Bh7 {[%clk 0:00:06.9]} 55...
Kd4 {[%clk 0:00:33.6]} 56. Bb1 {[%clk 0:00:07.8]} 56... Kc5 {[%clk 0:00:33.9]}
1/2-1/2

[Event "*** SCC Grand Prix: Titled Tuesday Blitz"]
[Site "Chess.com"]
[Date "2020.06.02"]
[Round "7"]
[White "Trickov"]
[Black "Pomegranate988"]
[Result "1/2-1/2"]
[WhiteElo "2338"]
[BlackElo "2525"]
[TimeControl "180+1"]
[EndTime "11:20:46 PDT"]
[Termination "Game drawn by repetition"]

1. d4 {[%clk 0:02:58.4]} 1... Nf6 {[%clk 0:02:59]} 2. Nf3 {[%clk 0:02:56.8]}
2... g6 {[%clk 0:02:55.5]} 3. c4 {[%clk 0:02:56.2]} 3... Bg7 {[%clk 0:02:55.4]}
4. g3 {[%clk 0:02:56.7]} 4... c5 {[%clk 0:02:54.8]} 5. Bg2 {[%clk 0:02:55.2]}
5... Qa5+ {[%clk 0:02:52.9]} 6. Bd2 {[%clk 0:02:50.9]} 6... Qb6 {[%clk
0:02:52.2]} 7. Bc3 {[%clk 0:02:50]} 7... cxd4 {[%clk 0:02:42.6]} 8. Bxd4 {[%clk
0:02:46.5]} 8... Qd8 {[%clk 0:02:36.9]} 9. O-O {[%clk 0:02:43.2]} 9... Nc6
{[%clk 0:02:36.7]} 10. Bc3 {[%clk 0:02:42.6]} 10... O-O {[%clk 0:02:36.7]} 11.
Nbd2 {[%clk 0:02:41.5]} 11... d6 {[%clk 0:02:36.7]} 12. Rc1 {[%clk 0:02:39.1]}
12... a5 {[%clk 0:02:35]} 13. b3 {[%clk 0:02:38.6]} 13... Bg4 {[%clk 0:02:30.3]}
14. h3 {[%clk 0:02:38.1]} 14... Bf5 {[%clk 0:02:28.8]} 15. Nd4 {[%clk
0:02:35.2]} 15... Bd7 {[%clk 0:02:22.4]} 16. Nb5 {[%clk 0:02:25.4]} 16... Qc8
{[%clk 0:02:14.8]} 17. Kh2 {[%clk 0:02:23.4]} 17... Nb4 {[%clk 0:02:14.4]} 18.
a3 {[%clk 0:01:45.4]} 18... Na2 {[%clk 0:02:12.8]} 19. Rc2 {[%clk 0:01:44.4]}
19... Nxc3 {[%clk 0:02:12.4]} 20. Nxc3 {[%clk 0:01:44.3]} 20... Bc6 {[%clk
0:02:07]} 21. Nd5 {[%clk 0:01:41.1]} 21... Qd8 {[%clk 0:02:01.4]} 22. Ne4 {[%clk
0:01:34]} 22... Nxe4 {[%clk 0:01:56.7]} 23. Bxe4 {[%clk 0:01:33.1]} 23... Rc8
{[%clk 0:01:47.9]} 24. Bg2 {[%clk 0:01:30.3]} 24... e6 {[%clk 0:01:36.6]} 25.
Ne3 {[%clk 0:01:26.2]} 25... Bxg2 {[%clk 0:01:34.1]} 26. Kxg2 {[%clk 0:01:25.6]}
26... Qb6 {[%clk 0:01:32.2]} 27. Rd2 {[%clk 0:01:20.4]} 27... Rfd8 {[%clk
0:01:31.8]} 28. a4 {[%clk 0:01:16]} 28... Bh6 {[%clk 0:01:16.9]} 29. Rd3 {[%clk
0:01:14.9]} 29... Bxe3 {[%clk 0:01:14.7]} 30. Rxe3 {[%clk 0:01:12.8]} 30... d5
{[%clk 0:01:14.9]} 31. cxd5 {[%clk 0:01:12.1]} 31... Rxd5 {[%clk 0:01:14.5]} 32.
Rd3 {[%clk 0:01:12.1]} 32... Rcd8 {[%clk 0:01:12.8]} 33. Rxd5 {[%clk 0:01:10.9]}
33... Rxd5 {[%clk 0:01:12.7]} 34. Qc2 {[%clk 0:01:10.7]} 34... Rc5 {[%clk
0:01:12.6]} 35. Qd2 {[%clk 0:01:04.4]} 35... h5 {[%clk 0:01:01.7]} 36. Rd1
{[%clk 0:01:00.6]} 36... Qxb3 {[%clk 0:00:50.2]} 37. Qd8+ {[%clk 0:00:57.6]}
37... Kh7 {[%clk 0:00:49.8]} 38. Rd7 {[%clk 0:00:24.1]} 38... Rf5 {[%clk
0:00:42.9]} 39. Qf8 {[%clk 0:00:23.4]} 39... Qxa4 {[%clk 0:00:09.6]} 40. Rxf7+
{[%clk 0:00:20.6]} 40... Rxf7 {[%clk 0:00:09.4]} 41. Qxf7+ {[%clk 0:00:20.5]}
41... Kh6 {[%clk 0:00:09.7]} 42. Qf8+ {[%clk 0:00:20.4]} 42... Kh7 {[%clk
0:00:10]} 43. Qf7+ {[%clk 0:00:20.5]} 43... Kh6 {[%clk 0:00:10.4]} 44. Qf8+
{[%clk 0:00:20.8]} 44... Kh7 {[%clk 0:00:10.7]} 45. Qf7+ {[%clk 0:00:21]}
1/2-1/2